Cogmind - Beta 16.1 @@@ ROGUE MODE // 2026.02.19 @ 00:22:49 Player: Megaknight51 Result: Destroyed by G-47 Trooper with Particle Gun Performance ------------- Evolutions (2) 1000 Regions Visited (4) 800 Robots Destroyed (80) 400 Value Destroyed (1796) 1796 Prototype IDs (20) 400 Alien Tech Used (0) 0 Bonus (-10) -10 TOTAL SCORE: 4386 Bonus ------- High Alert Combat Kills 35 Follower Combat Kills 7 Friendly Fire -52 Cogmind --------- Core Integrity 0/550 Matter 10/300 Energy 19/100 System Corruption 0% Temperature Cool (55) Movement Rolling (155) Ox5 Location -8/Materials Parts ------- > --- POWER (2) -------- (None) > --- PROPULSION (4) --- Wheel > --- UTILITY (2) ------ High-capacity Storage Unit Makeshift Light Armor Plating > --- WEAPON (3) ------- Heavy Ion Cannon Battle Rifle High-powered Shotgun > --- INVENTORY (20) --- Improved Sensor Array Improved Signal Interpreter Improved Terrain Scanner Improved Salvage Targeting Computer Core Analyzer Rainbow Chip Heavy Ion Cannon Heavy Ion Cannon Heavy Assault Rifle Subdweller Machine Gun Advanced Assault Cannon Rocket Launcher Datajack Multitool Makeshift Axe Peak State ------------ > --- POWER ------------ Improved Ion Engine Light Nuclear Core > --- PROPULSION ------- Light Treads Wheel Subdweller Monowheel > --- UTILITY ---------- High-capacity Storage Unit Core Analyzer > --- WEAPON ----------- Advanced Assault Cannon Advanced Assault Cannon Advanced Assault Cannon > --- INVENTORY -------- Improved Sensor Array Improved Signal Interpreter Improved Terrain Scanner Improved Salvage Targeting Computer Core Analyzer Makeshift Light Armor Plating Rainbow Chip Light Assault Rifle Heavy Assault Rifle Battle Rifle Subdweller Machine Gun Subdweller Machine Gun Advanced Assault Cannon Rocket Launcher Rocket Launcher Rocket Launcher Rocket Launcher Datajack Multitool Makeshift Axe [Rating: 32] Favorites ----------- Power Ion Engine Engine Ion Engine Power Core Light Nuclear Core Propulsion Wheel Treads Light Treads Wheel Wheel Utility High-capacity Storage Unit Device Seismic Detector Storage High-capacity Storage Unit Processor Core Analyzer Protection Medium Armor Plating Weapon EM Pulse Gun Energy Gun EM Pulse Gun Energy Cannon Heavy Ion Cannon Ballistic Gun Assault Rifle Ballistic Cannon Advanced Assault Cannon Launcher Rocket Launcher Special Weapon Mining Laser Slashing Weapon Makeshift Axe Build | -11 -10 -10 -10 -8 ------- Run | Yrd Mat Min Sub Mat Slots Evolved 4 | . . . . 4 Power 1 | . . . . 1 Propulsion 2 | . . . . 2 Utility . | . . . . . Weapon 1 | . . . . 1 Parts Attached 61 | 7 7 3 24 20 Power 8 | 1 1 1 3 2 Engine 6 | 1 . 1 3 1 Core 2 | . 1 . . 1 Reactor . | . . . . . Propulsion 14 | 2 1 . 7 4 Treads 1 | . . . 1 . Leg . | . . . . . Wheel 13 | 2 1 . 6 4 Hover . | . . . . . Flight . | . . . . . Utility 10 | 2 2 . 5 1 Device 2 | 1 . . 1 . Storage 3 | 1 2 . . . Processor 1 | . . . . 1 Hackware . | . . . . . Protection 4 | . . . 4 . Artifact . | . . . . . Weapon 29 | 2 3 2 9 13 Energy Gun 4 | 1 1 . . 2 Energy Cannon 3 | . . . . 3 Ballistic Gun 9 | 1 1 1 2 4 Ballistic Cannon 5 | . . . 2 3 Launcher 5 | . . 1 4 . Special Weapon 2 | . 1 . . 1 Impact Weapon . | . . . . . Slashing Weapon 1 | . . . 1 . Piercing Weapon . | . . . . . Special Melee Weapon . | . . . . . Unidentified Prototypes 1 | . . . . 1 Parts Lost 21 | . . 1 8 12 Power 3 | . . 1 . 2 Propulsion 7 | . . . 3 4 Utility 5 | . . . 4 1 Weapon 6 | . . . 1 5 Highest Loss Streak 10 | . . 1 3 10 To Critical Strikes . | . . . . . Average Backups 18 | 2 14 19 18 19 Power 1 | . 1 1 1 . Propulsion 1 | . 3 3 1 . Utility 3 | . 3 4 2 5 Weapon 10 | . 6 10 11 11 Tool/Special . | . . . . . Unused Backups 23 | . 6 . 3 14 Power . | . . . . . Propulsion 2 | . 2 . . . Utility 6 | . . . 1 5 Weapon 13 | . 4 . 2 7 Tool/Special 2 | . . . . 2 Average Slot Usage (%) 92 | . 99 99 93 78 Engine 10 | . 3 9 13 10 Core 2 | . 10 3 . 2 Treads 2 | . . . 2 7 Wheel 23 | . 27 28 22 15 Device 7 | . 14 14 5 . Storage 13 | . 14 14 14 9 Processor 1 | . . . . 5 Protection 3 | . . . 5 2 Energy Gun 8 | . 14 14 6 . Ballistic Gun 6 | . 13 8 3 5 Ballistic Cannon 4 | . . . 3 14 Launcher 2 | . . . 5 1 Special Weapon 1 | . . 4 . . Slashing Weapon 3 | . . . 8 1 Peak Build Rating 32 | 7 11 12 19 32 Average Rating 14 | 4 10 9 13 25 On Entrance 9 | . 7 11 10 19 Avg Prop Armor Cover (%) 8 | . . . 11 7 Naked Turns . | . . . . . Heaviest Build 72 | 12 50 52 60 72 Greatest Support 40 | 26 26 20 40 30 Greatest Overweight (x) 17 | . 2 2 17 13 Average Overweight (x) 1 | . . 2 1 2 Largest Inventory Capacity 20 | 8 20 20 20 20 Average Capacity 19 | 7 17 20 20 20 Most Carried 20 | 6 20 20 20 20 Average Carried 18 | 2 14 19 18 19 Final Capacity 20 | 8 20 20 20 20 Final Carried 20 | 6 20 20 18 15 Class Distribution -------------------- 83% | Mutant 9% | Gunner 3% | Derelict-Mutant Dominant Class ---------------- Mutant | -10/Materials Mutant | -10/Mines Mutant | -10/Subcaves Gunner | -8/Materials Resources | -11 -10 -10 -10 -8 ----------- Run | Yrd Mat Min Sub Mat Matter Collected 2022 | 303 151 80 803 685 Remotely . | . . . . . Salvage Created 1859 | 161 389 49 489 771 Parts 145 | 13 23 3 43 63 Haulers Intercepted 3 | . 2 . . 1 Recyclers Shooed 2 | 1 . . . 1 Parts Field Recycled . | . . . . . Retrieved Matter . | . . . . . Parts Self-Destructed 14 | . . . 14 . Prevented . | . . . . . Parts Restored . | . . . . . Kills | -11 -10 -10 -10 -8 ------- Run | Yrd Mat Min Sub Mat Combat Hostiles Destroyed 57 | . 8 5 21 23 Guns 16 | . 8 2 4 2 Cannons 23 | . . . 6 17 AOE 18 | . . 3 11 4 Classes Destroyed 15 | 2 3 1 5 4 Worker 6 | . . . . 6 Builder 4 | . . . . 4 Tunneler 5 | 5 . . . . Hauler 3 | . 2 . . 1 Recycler 2 | 1 . . . 1 Operator 1 | . . . . 1 Turret 2 | . . . 2 . Watcher 1 | . . . . 1 Swarmer 25 | . 3 4 6 12 Grunt 14 | . 5 . 1 8 Sentry 4 | . . . 1 3 Artisan 1 | . . . 1 . Subdweller 13 | . . . 13 . Scientist 1 | . . . 1 . Assembled 1 | . . 1 . . Best Kill Streak 8 | 3 4 3 7 8 Combat Bots Only 6 | . 4 3 6 6 Max Kills in Single Turn 3 | 1 1 2 3 3 Gunslinging . | . . . . . Exploded 3 | . . 2 3 1 Melee . | . . . . . Uniques/NPCs Destroyed . | . . . . . Combat | -11 -10 -10 -10 -8 -------- Run | Yrd Mat Min Sub Mat Hostile Shots Fired 299 | . 30 10 110 149 Missed 89 | . 7 3 46 33 Hits 210 | . 23 7 64 116 Projectile 210 | . 23 7 64 116 AOE 3 | . . . 3 . Critical Strikes 9 | . . . 3 6 Damage Taken 3346 | . 250 85 1198 1813 Core 774 | . 51 . 166 557 Absorbed by Shields . | . . . . . Core Remaining (%) 56 | 100 . . 13 . Volleys Fired 178 | 11 28 13 63 63 Largest 3 | 2 2 2 2 3 Hottest 145 | 60 100 100 73 145 Shots Fired 347 | 21 55 21 113 137 Gun 140 | 21 54 14 43 8 Cannon 170 | . . . 46 124 Launcher 31 | . . 2 24 5 Special 6 | . 1 5 . . Kinetic 214 | 11 27 6 72 98 Thermal 65 | 10 28 5 . 22 Explosive 31 | . . 2 24 5 Electromagnetic 37 | . . 8 17 12 Robot Hit Streak 18 | 8 13 2 18 5 Robot Miss Streak 7 | 2 2 4 2 7 Penetration Max . | . . . . . Secondary Targets 1 | . 1 . . . Max Gunslinging Chain 1 | . 1 . . . Shots Hit Robots 216 | 14 41 6 90 65 Core Hits 125 | 7 17 6 46 49 Critical Kills . | . . . . . Critical Parts Destroyed 1 | . 1 . . . Critical Strikes 5 | . 1 . 1 3 Destroy 2 | . 1 . 1 . Blast 3 | . . . . 3 Melee Attacks 29 | . . . 28 1 Impact . | . . . . . Slashing 29 | . . . 28 1 Piercing . | . . . . . Sneak Attacks 1 | . . . 1 . Combat Hostiles . | . . . . . Follow-up Attacks . | . . . . . Damage Inflicted 6052 | 176 474 294 2440 2668 Guns 1436 | 176 474 60 625 101 Cannons 2526 | . . . 699 1827 Explosions 1966 | . . 234 992 740 Melee 124 | . . . 124 . Ramming . | . . . . . Kinetic 2964 | 93 243 37 1152 1439 Thermal 910 | 83 231 . . 596 Explosive 1751 | . . 234 992 525 Electromagnetic 303 | . . 23 172 108 Impact . | . . . . . Slashing 124 | . . . 124 . Piercing . | . . . . . Highest Corruption 1 | . 1 1 1 . Average Corruption 1 | . 1 1 1 . Corruption Purged . | . . . . . Corruption Blocked . | . . . . . Effects 30 | . 3 6 21 . Message Errors 10 | . 2 2 6 . Matter Fused 4 | . . 2 2 . Energy Discharges 6 | . 1 . 5 . Data Loss (minor) 5 | . . 1 4 . Data Loss (major) 1 | . . . 1 . Alerts 3 | . . 1 2 . Weapon Failures 1 | . . . 1 . Overload Shots . | . . . . . Overflow Damage 235 | . . . 99 136 Projectiles 26 | . . . . 26 Explosions 162 | . . . 52 110 Melee 47 | . . . 47 . Knockbacks 14 | . . . 6 8 Impact . | . . . . . Kinetic 13 | . . . 6 7 Secondary 1 | . . . . 1 Self-Inflicted Damage 442 | . . . 92 350 Shots 10 | . . . 3 7 Rammed . | . . . . . Targets Rammed . | . . . . . Kicked . | . . . . . Crushed . | . . . . . Highest Temperature 538 | 20 48 36 11 538 Average Temperature 114 | 20 16 12 7 160 Received Heat Transfer 1023 | . 102 . 282 639 Effects 7 | . . . . 7 Shutdowns 2 | . . . . 2 Interference 2 | . . . . 2 Matter Decay 1 | . . . . 1 Short Circuit 1 | . . . . 1 Damage (minor) 1 | . . . . 1 Siege Activations . | . . . . . Martial Activations . | . . . . . Shielding Activations . | . . . . . Robots Disrupted . | . . . . . Combat Hostiles . | . . . . . Robots Corrupted . | . . . . . Combat Hostiles . | . . . . . Parts Fried 1 | . . . . 1 Impact Corruptions . | . . . . . Robots Melted . | . . . . . Combat Hostiles . | . . . . . Parts Melted 3 | 1 . . . 2 Heat Transferred 1443 | 200 525 . . 718 Parts Sabotaged . | . . . . . Parts Stolen . | . . . . . Parts Stripped . | . . . . . Power Chain Reactions 2 | . . . . 2 Alert | -11 -10 -10 -10 -8 ------- Run | Yrd Mat Min Sub Mat Maximum Alert Level 2 | . . . . 2 Low Security (%) 90 | 100 100 100 . 70 Level 1 5 | . . . . 17 Level 2 4 | . . . . 12 Level 3 . | . . . . . Level 4 . | . . . . . Level 5 . | . . . . . High Security . | . . . . . Max Security . | . . . . . Peak Influence 429 | 15 81 110 . 429 Initial 16 | . . 16 . . Average 58 | 3 21 11 . 145 Influence Increases 1565 | 30 256 143 285 851 Destroy 0b10 Robot/C 920 | . 160 100 200 460 Destroy 0b10 Robot/NC 110 | 30 10 . . 70 Destroy Leader 148 | . 44 10 10 84 Allied During Kill 15 | . . 15 . . Successful Hack 31 | . 10 . . 21 Disable Machine 90 | . . . . 90 Destroy Structure 131 | . 2 18 . 111 Lose Combat Pursuer 120 | . 30 . 75 15 Influence Decreases 1135 | 30 213 186 285 421 Entered New Map 27 | . . 27 . . Time Decay 938 | 30 213 129 265 301 Lost Part 150 | . . 10 20 120 Lost Ally 20 | . . 20 . . Squads Dispatched 5 | . 2 . . 3 Investigation 1 | . . . . 1 Extermination . | . . . . . Reinforcement 4 | . 2 . . 2 Assault . | . . . . . Garrison . | . . . . . Intercept . | . . . . . Searches Triggered . | . . . . . Construction Impeded 2 | . . . . 2 Haulers Reinforced . | . . . . . Active Scanning Responses . | . . . . . Cargo Convoy Interrupts . | . . . . . Stealth | -11 -10 -10 -10 -8 --------- Run | Yrd Mat Min Sub Mat Distress Signals 5 | . 2 1 . 2 Communications Jammed . | . . . . . Distress Signals . | . . . . . Times Spotted 85 | . 14 7 25 39 Peak Tracking Total 6 | . 5 2 6 6 Tactical Retreats 6 | . 1 1 3 1 Traps | -11 -10 -10 -10 -8 ------- Run | Yrd Mat Min Sub Mat Traps Triggered 1 | . 1 . . . Indirectly . | . . . . . Trap Hack Attempts . | . . . . . Triggered . | . . . . . Disarmed . | . . . . . Reprogrammed . | . . . . . Reused . | . . . . . Traps Extracted . | . . . . . Installed . | . . . . . Triggered . | . . . . . Machines | -11 -10 -10 -10 -8 ---------- Run | Yrd Mat Min Sub Mat Machines Disabled 10 | . . . 4 6 Max in Single Turn 3 | . . . 3 2 Machines Repaired . | . . . . . Machines Dismantled . | . . . . . Machines Sabotaged . | . . . . . Overloaded Fab Kills . | . . . . . Hacking | -11 -10 -10 -10 -8 --------- Run | Yrd Mat Min Sub Mat Machines Accessed 14 | . 5 . 1 8 Terminals 12 | . 5 . . 7 Fabricators . | . . . . . Repair Stations . | . . . . . Recycling Units . | . . . . . Scanalyzers . | . . . . . Garrison Access 1 | . . . . 1 Total Hacks 42 | . 17 . 1 24 Successful 18 | . 7 . 1 10 Failed 24 | . 10 . . 14 Catastrophic 5 | . . . . 5 Database Lockouts . | . . . . . Manual 29 | . 15 . . 14 Terminals 40 | . 17 . . 23 Fabricators . | . . . . . Repair Stations . | . . . . . Recycling Units . | . . . . . Scanalyzers . | . . . . . Garrison Access 1 | . . . . 1 Terminal Hacks 11 | . 5 . 1 5 Part Schematic 1 | . 1 . . . Robot Analysis 3 | . 2 . . 1 Prototype ID Bank 3 | . 1 . . 2 Terminal Index 1 | . . . . 1 Recycling Unit Index 1 | . . . . 1 Hauler Manifests 1 | . 1 . . . Proto ID Catalog 1 | . . . 1 . Fabricator Hacks . | . . . . . Repair Station Hacks . | . . . . . Recycling Unit Hacks . | . . . . . Scanalyzer . | . . . . . Garrison Access Hacks 1 | . . . . 1 Unlock Access 1 | . . . . 1 Unauthorized Hacks 6 | . 2 . . 4 Terminals 6 | . 2 . . 4 Botnet 6 | . 2 . . 4 Fabricators . | . . . . . Repair Stations . | . . . . . Recycling Units . | . . . . . Scanalyzers . | . . . . . Garrison Access . | . . . . . Data Cores Recovered 1 | . . . . 1 Used . | . . . . . Hacking Detections 12 | . 5 . . 7 Full Trace Events 2 | . . . . 2 Feedback Events . | . . . . . Feedback Blocked . | . . . . . Robot Schematics Acquired . | . . . . . Robots Built . | . . . . . Authchips . | . . . . . Time . | . . . . . Total Robot Build Rating . | . . . . . Part Schematics Acquired 1 | . 1 . . . Parts Built . | . . . . . Authchips . | . . . . . Time . | . . . . . Total Part Build Rating . | . . . . . Part Studies Acquired . | . . . . . Parts Repaired . | . . . . . Time . | . . . . . Parts Recycled . | . . . . . Recycled Matter . | . . . . . Retrieved Matter . | . . . . . Retrieved Components . | . . . . . Parts Scanalyzed . | . . . . . Part Schematics Acquired . | . . . . . Parts Damaged . | . . . . . Bothacking | -11 -10 -10 -10 -8 ------------ Run | Yrd Mat Min Sub Mat Used RIF Installer . | . . . . . Robots Hacked . | . . . . . Non-combat . | . . . . . Combat . | . . . . . Robot Hacks Applied . | . . . . . Relay Couplers Released . | . . . . . Fabnet Peak Effective % . | . . . . . Robots Rewired . | . . . . . Allies Hacked . | . . . . . Hacks Repelled . | . . . . . Allies | -11 -10 -10 -10 -8 -------- Run | Yrd Mat Min Sub Mat Total Allies 3 | . . 3 . . Largest Group 3 | . . 3 . . Highest-Rated Group 40 | . . 40 . . Highest-Rated Ally 16 | . . 16 . . Total Orders . | . . . . . Ally Attacks 10 | . . 10 . . Total Damage 88 | . . 88 . . Kills 1 | . . 1 . . Allies Corrupted . | . . . . . Allies Melted . | . . . . . Intel | -11 -10 -10 -10 -8 ------- Run | Yrd Mat Min Sub Mat Active Infowar (turns) 2865 | 10 851 1177 827 . Terrain 680 | . . . 680 . Seismic 2185 | 10 851 1177 147 . Robot Analysis Total 3 | . 2 . . 1 Derelict Logs Recovered 2 | . . 1 1 . Drone Launches . | . . . . . Drone Recoveries . | . . . . . Exploration | -11 -10 -10 -10 -8 ------------- Run | Yrd Mat Min Sub Mat Turns Passed 5576 | 147 851 1177 2324 1077 Spaces Moved 3310 | 114 663 495 1426 612 Core 15 | 12 . . 1 2 Treads 82 | . . . 82 . Legs . | . . . . . Wheels 3213 | 102 663 495 1343 610 Hover . | . . . . . Flight . | . . . . . Fastest Speed 50 | 50 90 110 107 110 Average Speed 118 | 85 103 110 127 125 Slowest Speed 900 | 90 110 110 900 700 Overloaded Moves . | . . . . . Propulsion Burnouts . | . . . . . Robots Hopped . | . . . . . Potential Cave-ins 2 | . . 2 . . Cave-ins Triggered . | . . . . . Exploration Rate (%) 56 | 5 90 87 59 43 Regions Visited 4 Branch Regions 2 Pre-discovered Areas 1 | . . . 1 . Known Exits Taken . | . . . . . Unknown Exits Taken 4 | 1 1 1 1 . Scrap Searched 6 | . . 1 5 . Spaces Dug 26 | . 1 5 20 . Terrain Destroyed 255 | . 1 23 107 124 Melee 6 | . . . 6 . Projectile 41 | . 1 5 2 33 AOE 208 | . . 18 99 91 Terrain Rammed . | . . . . . Walls Destroyed . | . . . . . Machines Disabled . | . . . . . Actions | -11 -10 -10 -10 -8 --------- Run | Yrd Mat Min Sub Mat Total 4600 | 139 779 1092 1785 805 Wait 903 | . 50 575 204 74 Move 3306 | 113 662 494 1425 612 Hop . | . . . . . Pick Up 51 | 8 21 1 12 9 Fast Attach 20 | 5 . . 3 12 Attach 18 | 2 1 1 8 6 Detach 4 | . . . 3 1 Swap 50 | . 6 8 24 12 Drop 41 | . 11 . 15 15 Fire 178 | 11 28 13 63 63 Melee 29 | . . . 28 1 Ram . | . . . . . Kick . | . . . . . Crush . | . . . . . Escape Stasis . | . . . . . Rewire . | . . . . . Trap . | . . . . . Miscellaneous . | . . . . . Route ------- -11/Scrapyard -10/Materials (discovered 4 exits: [*Mat x3] / [*Min]) -10/Mines (discovered 2 exits: [*Mat] / *Sub) -10/Subcaves (discovered 3 exits: *Mat x2 / [*Rec]) -8/Materials (discovered 1 exit: Gar) History --------- Turn | Location | Event 15 | -11/Scrapyard | Discovered new exit (range 16) 148 | -11/Scrapyard | Entered Materials 189 | -10/Materials | Discovered new exit (range 16) 212 | -10/Materials | Discovered new exit (range 15) 300 | -10/Materials | Build established: Mutant 619 | -10/Materials | Discovered new exit (range 4) 919 | -10/Materials | Discovered new exit (range 7) 999 | -10/Materials | Entered Mines 1059 | -10/Mines | Discovered new exit (range 4) 1150 | -10/Mines | Discovered new exit (range 5) 1167 | -10/Mines | Assisted by bots powering up and referring to "LRC-V3" 1295 | -10/Mines | Excavation squad dispatched 1295 | -10/Mines | A large section of the Mines collapsed 1326 | -10/Mines | Lost 3 allies 1935 | -10/Mines | Received a Rocket Launcher from a helpful Derelict 2176 | -10/Mines | Entered Subcaves 2177 | -10/Subcaves | Approached by a straggling Scientist 2202 | -10/Subcaves | Shifting Twisted Machinery released Mak. Axe 2255 | -10/Subcaves | Shifting Twisted Machinery released Humpback 2259 | -10/Subcaves | Shifting Twisted Machinery released Sub. Optics 2342 | -10/Subcaves | A swath of the cavern ceiling suddenly collapsed 2366 | -10/Subcaves | Discovered new exit (range 7) 2452 | -10/Subcaves | Ambushed by angry Subdweller bent on revenge 2515 | -10/Subcaves | A swath of the cavern ceiling suddenly collapsed 3217 | -10/Subcaves | Disturbed a concealed Subdweller 3226 | -10/Subcaves | Core integrity fell below 50% 3511 | -10/Subcaves | Lost 3 parts (1n1u1w) 3637 | -10/Subcaves | Discovered new exit (range 7) 3792 | -10/Subcaves | Discovered new exit (range 14) 3807 | -10/Subcaves | Learned location of Zion (-7) 3807 | -10/Subcaves | Met a Zionite searching for "candidates" 3856 | -10/Subcaves | A Subdweller sparked back to life 3856 | -10/Subcaves | A Subdweller sparked back to life 3856 | -10/Subcaves | A Subdweller sparked back to life 3861 | -10/Subcaves | Core integrity fell below 20% 4397 | -10/Subcaves | Visited 4L-MR0's lab 4413 | -10/Subcaves | Found Rainbow Chip 4500 | -10/Subcaves | Entered Materials 4500 | -8/Materials | Evolved 4 slots: Power x1, Propulsion x2, Weapon x1 5066 | -8/Materials | Identified exit to Garrison 5121 | -8/Materials | Build established: Gunner 5452 | -8/Materials | Core integrity fell below 50% 5473 | -8/Materials | Core integrity fell below 20% 5492 | -8/Materials | Lost 10 parts (1p3n1u5w) 5577 | -8/Materials | Destroyed by G-47 Trooper with Particle Gun Last Messages --------------- 05498_ U-05 Engineer lays Concrete. 05501_ U-05 Engineer builds a Wall. 05507_ Connecting with Terminal... >>Index(Recycling Units) Found 2 recycling units. Downloaded coordinate data. 05509_ The unstable cave ceiling collapses. 05518_ U-05 Engineer lays Concrete. 05519_ U-05 Engineer builds a Wall. 05520_ K-01 Serf collects debris. 05520_ U-05 Engineer lays Concrete. 05523_ K-01 Serf collects debris. 05524_ U-05 Engineer builds a Wall. 05524_ U-05 Engineer lays Concrete. 05525_ U-05 Engineer builds a Wall. 05528_ K-01 Serf cleans the Nuclear Reactor. 05530_ K-01 Serf collects debris. 05557_ Acquired Hpw. Shotgun. 05573_ Critical hit (Burn: +37). 05574_ G-47 Trooper destroyed. Map ----- +----------------------------------------------------+ | ######### ##[## #???????????????????????????????? | | ##[#= ##???????????????????????????????? | | """ ### ## ##???????????????????????????????? | | """ # ##????????????????????????????????? | | """ # #?????????????????????????????????? | | " / T #?????????????????????????????????? | | T !! # #?????????????????????????????????? | | " !! # #?????????????????????????????????? | | !! ## ##########?????????????????????????? | | ####### ### # #?????????????????????????? | | ??????###?# # """ #?????????????????????????? | | ??????????# + """ ?????????????????????????? | | ??????????# # """ #?????????????????????????? | | ??????????# # #?????????????????????????? | | ???######## # ! ""#?????????????????????????? | | ???# # Y"#?????????????????????????? | | ???# +?? ""#?????????????????????????? | | ???# #?? #?????????????????????????? | | #### #### ####+#########+##??????????????????? | | ## ????# # # ##### #???????????? | | " ## ?????# # "" + #???????????? | | " ##??????# # S"" != # " #???????????? | | " #???????# + "" =! # ##+##+##???????????? | | #???????# # ! =## ##??????????????????? | | ###???????# #######+#;### #???????????????????? | | ??????????##+##???#] g @/% #???????????????????? | | ??????????????????# #= +??????????????????? | | ??????????????????# + ##??????????????????? | | ??????????????????# ####???????????????????? | | ??????????????????# """"" #??????????????????????? | | ??????????????????# """"" ???????????????????????? | | ??????????????????# """"" ???????????????????????? | | ??????????????????#?######???????????????????????? | | ?????????????????????????????????????????????????? | | | | | | | | | | | | | | | | | | | | | | | | | | | | | | | | | +----------------------------------------------------+ Best States ------------- Heat Dissipation 31 Energy Generation 21 Energy Capacity 325 Matter Stores 300 Matter Capacity 300 Sight Range 16 Terrain Scan Range 16 Terrain Scan Density 10 Armor Coverage 225 Evasion (%) 42 Core Analysis 6 Recoil Reduction 1 Item Schematics ----------------- Hcp. Storage Unit | -10/Materials | Hacked Robot Schematics ------------------ None Fabricated ------------ Nothing Repaired ---------- Nothing Studied --------- None Alien Tech Used ----------------- None Achievements -------------- None Challenges ------------ None Game ------ Seed MicrowarpDerelictMatterbank Manual? 0 Play Time 00:37:55 Cumulative 91.5 hours Start 2026.02.18 @ 23:41:30 End 2026.02.19 @ 00:22:49 Sessions 1 Manual Loads 0 Difficulty Rogue Special Mode None Game No. 188 Rogue 188 Adventurer 0 Explorer 0 Win Type - Total 2 Types 1/0/0/1/0/0/0/0/0/0 Lore% 51 Gallery% 39 Achievement% 39 Wizard Run 0 Options --------- Layout 0 ASCII 0 Keyboard 1 Movement Arrows Keybinds 0 Fullscreen 1 Font 18/Smallcaps Map View 38x25 Zoom Use 47% Tactical HUD 1 Map Filters NONE Filters NONE Steam 1 RUN: c3333d3d-7144-4ec1-a20f-054a94ddfdae